Cogmind - Beta 11.1 @@@ ROGUE MODE // 2022.06.03 @ 16:21:34 Player: Decinym Result: Destroyed by DAS Turret with DAS Cannon Performance ------------- Evolutions (1) 500 Regions Visited (5) 1000 Robots Destroyed (41) 205 Value Destroyed (948) 948 Prototype IDs (27) 540 Alien Tech Used (0) 0 Bonus (448) 448 TOTAL SCORE: 3641 Bonus ------- Follower Combat Kills 148 Aligned with FarCom 300 Cogmind --------- Core Integrity 0/400 Matter 190/300 Energy 52/100 System Corruption 0% Temperature Cool (0) Movement Treading (160) Location -9/Exiles Parts ------- > --- POWER (1) -------- (None) > --- PROPULSION (3) --- Light Treads Improved Treads Advanced Myomer Leg > --- UTILITY (3) ------ Large Storage Unit Shield Generator > --- WEAPON (2) ------- Rocket Launcher > --- INVENTORY (15) --- Reinforced Fission Core High-capacity Matter Pod (200) Gravity Neutralizer Experimental Sensor Array Experimental Targeting Computer Medium Armor Plating Heavy Assault Rifle Shotgun Improved Assault Rifle 8R-AWN's Boregun Plasma Cutter Peak State ------------ > --- POWER ------------ Improved Ion Engine > --- PROPULSION ------- Light Treads Improved Treads Advanced Myomer Leg > --- UTILITY ---------- Large Storage Unit Medium Armor Plating Shield Generator > --- WEAPON ----------- Improved Assault Rifle Rocket Launcher > --- INVENTORY -------- Reinforced Fission Core High-capacity Battery High-capacity Matter Pod Gravity Neutralizer Experimental Sensor Array Experimental Targeting Computer Medium Armor Plating Shield Generator Heavy Assault Rifle Shotgun Improved Assault Rifle 8R-AWN's Boregun Plasma Cutter [Rating: 28] Favorites ----------- Power Ion Engine Engine Ion Engine Propulsion Light Treads Treads Light Treads Leg Aluminum Leg Utility Medium Armor Plating Device Shield Generator Storage Large Storage Unit Processor Transport Network Coupler Protection Medium Armor Plating Weapon Improved Assault Rifle Energy Gun Medium Laser Energy Cannon Particle Cannon Ballistic Gun Improved Assault Rifle Launcher Rocket Launcher Build | -11 -10 -10 -9 -9 -9 ------- Run | Scr Mat Min Mat Min Exi Slots Evolved 2 | . . . 2 . . Power . | . . . . . . Propulsion 1 | . . . 1 . . Utility 1 | . . . 1 . . Weapon . | . . . . . . Parts Attached 48 | . 3 5 27 2 11 Power 4 | . . 1 2 . 1 Engine 4 | . . 1 2 . 1 Core . | . . . . . . Reactor . | . . . . . . Propulsion 16 | . 1 2 9 . 4 Treads 8 | . . . 5 . 3 Leg 8 | . 1 2 4 . 1 Wheel . | . . . . . . Hover . | . . . . . . Flight . | . . . . . . Utility 12 | . 1 2 5 2 2 Device 5 | . . 1 1 2 1 Storage 2 | . 1 . 1 . . Processor 1 | . . . 1 . . Hackware . | . . . . . . Protection 4 | . . 1 2 . 1 Artifact . | . . . . . . Weapon 16 | . 1 . 11 . 4 Energy Gun 3 | . 1 . 2 . . Energy Cannon 2 | . . . 2 . . Ballistic Gun 9 | . . . 7 . 2 Ballistic Cannon . | . . . . . . Launcher 2 | . . . . . 2 Special Weapon . | . . . . . . Impact Weapon . | . . . . . . Slashing Weapon . | . . . . . . Piercing Weapon . | . . . . . . Special Melee Weapon . | . . . . . . Unidentified Prototypes 4 | . . . 2 1 1 Parts Lost 20 | . . 1 8 . 11 Power 4 | . . 1 1 . 2 Propulsion 8 | . . . 4 . 4 Utility 4 | . . . 1 . 3 Weapon 4 | . . . 2 . 2 Highest Loss Streak 8 | . . 1 8 . 5 To Critical Strikes 6 | . . . . . 6 Average Slot Usage (%) 97 | . 86 96 95 100 98 Engine 11 | . 14 13 10 11 10 Treads 19 | . . . 13 33 31 Leg 11 | . 28 28 17 . . Device 8 | . . 1 11 11 11 Storage 11 | . 15 14 11 11 11 Protection 9 | . . 9 5 11 10 Energy Gun 9 | . 25 28 6 . . Ballistic Gun 13 | . 2 . 13 22 20 Naked Turns . | . . . . . . Heaviest Build 43 | 14 19 19 40 40 43 Greatest Support 60 | 20 20 20 60 60 60 Greatest Overweight (x) 6 | . . . 6 . . Average Overweight (x) . | . . . . . . Largest Inventory Capacity 15 | . 10 10 15 15 15 Average Capacity 13 | . 9 10 12 15 15 Most Carried 15 | . 6 9 15 15 15 Average Carried 11 | . 5 7 9 14 13 Final Capacity 15 | 8 10 10 15 15 15 Final Carried 15 | 6 6 9 15 15 11 Class Distribution -------------------- 55% | Scavenger-Mutant 44% | Mutant Dominant Class ---------------- Mutant | -10/Materials Mutant | -10/Mines Scavenger-Mutant | -9/Materials Scavenger-Mutant | -9/Mines Scavenger-Mutant | -9/Exiles Resources | -11 -10 -10 -9 -9 -9 ----------- Run | Scr Mat Min Mat Min Exi Matter Collected 1212 | 177 38 80 472 62 383 Remotely . | . . . . . . Salvage Created 1516 | . 80 282 1006 15 133 Parts 89 | . 3 23 56 2 5 Haulers Intercepted 4 | . . . 4 . . Recyclers Shooed . | . . . . . . Parts Field Recycled . | . . . . . . Retrieved Matter . | . . . . . . Parts Self-Destructed . | . . . . . . Prevented . | . . . . . . Kills | -11 -10 -10 -9 -9 -9 ------- Run | Scr Mat Min Mat Min Exi Combat Hostiles Destroyed 37 | . 2 15 16 . 4 Guns 33 | . 2 15 15 . 1 Cannons 1 | . . . 1 . . AOE 3 | . . . . . 3 Classes Destroyed 9 | . 1 1 5 1 1 Builder 1 | . . . . 1 . Hauler 4 | . . . 4 . . Recycler 1 | . . . 1 . . Watcher 1 | . . . 1 . . Swarmer 13 | . . 13 . . . Grunt 16 | . 2 2 12 . . Duelist 1 | . . . 1 . . Sentry 3 | . . . 3 . . Assembled 3 | . . . . . 3 Best Kill Streak 8 | . 2 3 8 1 3 Combat Bots Only 8 | . 2 3 8 . 3 Max Kills in Single Turn 2 | . 1 2 2 1 2 Gunslinging 1 | . . 1 1 . . Exploded 2 | . . . . . 2 Melee . | . . . . . . Uniques/NPCs Destroyed 1 | . . . . . 1 8R-AWN (-9/Exiles) Combat | -11 -10 -10 -9 -9 -9 -------- Run | Scr Mat Min Mat Min Exi Damage Taken 3378 | . 120 506 1370 24 1358 Core 648 | . 65 171 219 . 193 Absorbed by Shields 342 | . . . 8 9 325 Redirected to Shielding 2 | . . 2 . . . Core Remaining (%) 52 | 100 . 5 . . . Volleys Fired 176 | . 7 35 67 7 60 Largest 2 | . 2 2 2 2 2 Hottest 118 | . 90 90 118 46 46 Shots Fired 333 | . 14 70 133 14 102 Gun 312 | . 14 70 126 14 88 Cannon 7 | . . . 7 . . Launcher 14 | . . . . . 14 Special . | . . . . . . Kinetic 206 | . . . 104 14 88 Thermal 105 | . 14 70 21 . . Explosive 14 | . . . . . 14 Electromagnetic 8 | . . . 8 . . Robot Hit Streak 26 | . 13 16 24 2 26 Robot Miss Streak 4 | . . 3 3 4 1 Penetration Max . | . . . . . . Secondary Targets 9 | . 1 4 4 . . Max Gunslinging Chain 1 | . 1 1 1 . . Shots Hit Robots 247 | . 13 43 105 6 80 Core Hits 87 | . 4 18 40 2 23 Critical Kills . | . . . . . . Critical Parts Destroyed 2 | . . . 1 . 1 Critical Strikes 7 | . . 1 5 . 1 Burn 5 | . . 1 4 . . Destroy 2 | . . . 1 . 1 Melee Attacks . | . . . . . . Impact . | . . . . . . Slashing . | . . . . . . Piercing . | . . . . . . Sneak Attacks . | . . . . . . Combat Hostiles . | . . . . . . Follow-up Attacks . | . . . . . . Damage Inflicted 3701 | . 156 521 1444 88 1492 Guns 3203 | . 156 521 1263 88 1175 Cannons 121 | . . . 121 . . Explosions 356 | . . . 60 . 296 Melee . | . . . . . . Ramming 21 | . . . . . 21 Kinetic 2195 | . . . 932 88 1175 Thermal 961 | . 156 521 284 . . Explosive 356 | . . . 60 . 296 Electromagnetic 168 | . . . 168 . . Impact . | . . . . . . Slashing . | . . . . . . Piercing . | . . . . . . Highest Corruption 1 | . 1 1 . . . Average Corruption 1 | . 1 1 . . . Corruption Purged . | . . . . . . Corruption Blocked . | . . . . . . Effects 9 | . 1 8 . . . Message Errors 2 | . . 2 . . . Matter Fused 2 | . . 2 . . . Heat Flow Errors 2 | . . 2 . . . Parts Rejected 1 | . 1 . . . . Data Loss (minor) 1 | . . 1 . . . Data Loss (major) 1 | . . 1 . . . Overload Shots . | . . . . . . Overflow Damage . | . . . . . . Projectiles . | . . . . . . Explosions . | . . . . . . Melee . | . . . . . . Knockbacks . | . . . . . . Impact . | . . . . . . Kinetic . | . . . . . . Secondary . | . . . . . . Self-Inflicted Damage . | . . . . . . Shots . | . . . . . . Rammed 5 | . . . . . 5 Targets Rammed 5 | . . . . . 5 Kicked . | . . . . . . Crushed . | . . . . . . Highest Temperature 430 | . 236 401 430 . . Average Temperature 115 | . 111 126 86 . . Received Heat Transfer 771 | . 66 99 606 . . Effects 2 | . . 2 . . . Shutdowns 1 | . . 1 . . . Interference 1 | . . 1 . . . Siege Activations . | . . . . . . Robots Corrupted . | . . . . . . Combat Hostiles . | . . . . . . Parts Fried 1 | . . . 1 . . Impact Corruptions . | . . . . . . Robots Melted . | . . . . . . Combat Hostiles . | . . . . . . Parts Melted 12 | . . 6 6 . . Heat Transferred 2846 | . 409 1438 999 . . Parts Sabotaged . | . . . . . . Parts Stolen . | . . . . . . Parts Stripped . | . . . . . . Power Chain Reactions . | . . . . . . Missiles Intercepted . | . . . . . . Alert | -11 -10 -10 -9 -9 -9 ------- Run | Scr Mat Min Mat Min Exi Peak Influence 396 | . 55 190 396 212 . Initial 154 | . . 21 74 154 . Average 123 | . 21 80 211 114 . Maximum Alert Level 1 | . . . 1 1 . Low Security (%) 83 | . 100 100 50 90 . Level 1 16 | . . . 50 9 . Level 2 . | . . . . . . Level 3 . | . . . . . . Level 4 . | . . . . . . Level 5 . | . . . . . . High Security . | . . . . . . Max Security . | . . . . . . Squads Dispatched 1 | . . . 1 . . Investigation 1 | . . . 1 . . Extermination . | . . . . . . Reinforcement . | . . . . . . Assault . | . . . . . . Garrison . | . . . . . . Intercept . | . . . . . . Searches Triggered . | . . . . . . Construction Impeded . | . . . . . . Haulers Reinforced . | . . . . . . Active Scanning Responses . | . . . . . . Cargo Convoy Interrupts . | . . . . . . Stealth | -11 -10 -10 -9 -9 -9 --------- Run | Scr Mat Min Mat Min Exi Distress Signals 1 | . . 1 . . . Communications Jammed . | . . . . . . Distress Signals . | . . . . . . Times Spotted 67 | . 4 17 28 9 9 Peak Tracking Total 10 | . 4 3 8 4 10 Tactical Retreats 7 | . . 1 1 1 4 Traps | -11 -10 -10 -9 -9 -9 ------- Run | Scr Mat Min Mat Min Exi Traps Triggered 1 | . 1 . . . . Indirectly . | . . . . . . Trap Hack Attempts . | . . . . . . Triggered . | . . . . . . Disarmed . | . . . . . . Reprogrammed . | . . . . . . Reused . | . . . . . . Traps Extracted . | . . . . . . Installed . | . . . . . . Triggered . | . . . . . . Exploded 3 | . . . . . 3 Machines | -11 -10 -10 -9 -9 -9 ---------- Run | Scr Mat Min Mat Min Exi Machines Disabled 6 | . . . 3 . 3 Max in Single Turn 2 | . . . 2 . 1 Machines Sabotaged . | . . . . . . Garrisons Compromised . | . . . . . . Overloaded Fab Kills . | . . . . . . Hacking | -11 -10 -10 -9 -9 -9 --------- Run | Scr Mat Min Mat Min Exi Machines Accessed 9 | . 3 . 4 . 2 Terminals 7 | . 3 . 4 . . Fabricators . | . . . . . . Repair Stations . | . . . . . . Recycling Units . | . . . . . . Scanalyzers . | . . . . . . Garrison Access . | . . . . . . Total Hacks 16 | . 8 . 6 . 2 Successful 5 | . 2 . 1 . 2 Failed 11 | . 6 . 5 . . Catastrophic 4 | . 1 . 3 . . Database Lockouts . | . . . . . . Manual 14 | . 8 . 5 . 1 Terminals 14 | . 8 . 6 . . Fabricators . | . . . . . . Repair Stations . | . . . . . . Recycling Units . | . . . . . . Scanalyzers . | . . . . . . Garrison Access . | . . . . . . Terminal Hacks 5 | . 2 . 1 . 2 Record 1 | . . . . . 1 Part Schematic 1 | . 1 . . . . Branch Access Points 2 | . 1 . 1 . . EX-Prototype ID Bank 1 | . . . . . 1 Fabricator Hacks . | . . . . . . Repair Station Hacks . | . . . . . . Recycling Unit Hacks . | . . . . . . Scanalyzer . | . . . . . . Garrison Access Hacks . | . . . . . . Unauthorized Hacks . | . . . . . . Terminals . | . . . . . . Fabricators . | . . . . . . Repair Stations . | . . . . . . Recycling Units . | . . . . . . Scanalyzers . | . . . . . . Garrison Access . | . . . . . . Data Cores Recovered . | . . . . . . Used . | . . . . . . Hacking Detections 7 | . 3 . 4 . . Full Trace Events 2 | . 1 . 1 . . Feedback Events . | . . . . . . Feedback Blocked . | . . . . . . Robot Schematics Acquired . | . . . . . . Robots Built . | . . . . . . Authchips . | . . . . . . Time . | . . . . . . Total Robot Build Rating . | . . . . . . Part Schematics Acquired 1 | . 1 . . . . Parts Built . | . . . . . . Authchips . | . . . . . . Time . | . . . . . . Total Part Build Rating . | . . . . . . Parts Repaired . | . . . . . . Time . | . . . . . . Parts Recycled . | . . . . . . Recycled Matter . | . . . . . . Retrieved Matter . | . . . . . . Retrieved Components . | . . . . . . Parts Scanalyzed . | . . . . . . Part Schematics Acquired . | . . . . . . Parts Damaged . | . . . . . . Bothacking | -11 -10 -10 -9 -9 -9 ------------ Run | Scr Mat Min Mat Min Exi Used RIF Installer . | . . . . . . Robots Hacked . | . . . . . . Non-combat . | . . . . . . Combat . | . . . . . . Robot Hacks Applied . | . . . . . . Relay Couplers Released . | . . . . . . Fabnet Peak Effective % . | . . . . . . Robots Rewired . | . . . . . . Allies Hacked . | . . . . . . Hacks Repelled . | . . . . . . Allies | -11 -10 -10 -9 -9 -9 -------- Run | Scr Mat Min Mat Min Exi Total Allies 3 | . . . . 3 . Largest Group 3 | . . . . 3 2 Highest-Rated Group 40 | . . . . 40 32 Highest-Rated Ally 16 | . . . . 16 16 Total Orders 2 | . . . . . 2 STAY 2 | . . . . . 2 Ally Attacks 39 | . . . . 35 4 Total Damage 324 | . . . . 289 35 Kills 8 | . . . . 8 . Allies Corrupted . | . . . . . . Allies Melted . | . . . . . . Intel | -11 -10 -10 -9 -9 -9 ------- Run | Scr Mat Min Mat Min Exi Robot Analysis Total . | . . . . . . Derelict Logs Recovered 4 | . . 2 . 2 . Drone Launches . | . . . . . . Drone Recoveries . | . . . . . . Exploration | -11 -10 -10 -9 -9 -9 ------------- Run | Scr Mat Min Mat Min Exi Turns Passed 4243 | . 122 1113 792 1023 1193 Spaces Moved 2205 | 1 76 548 385 609 586 Core 1 | . . . 1 . . Treads 1339 | . . . 144 609 586 Legs 865 | 1 76 548 240 . . Wheels . | . . . . . . Hover . | . . . . . . Flight . | . . . . . . Fastest Speed 120 | 120 120 120 120 160 160 Average Speed 144 | 120 120 120 137 160 160 Slowest Speed 350 | 120 120 120 350 160 160 Overloaded Moves . | . . . . . . Propulsion Burnouts . | . . . . . . Robots Hopped . | . . . . . . Cave-ins Triggered . | . . . . . . Exploration Rate (%) 52 | 2 26 73 45 99 69 Regions Visited 5 Branch Regions 3 Pre-discovered Areas 2 | . . 1 . . 1 Known Exits Taken 2 | . 1 . 1 . . Unknown Exits Taken 3 | 1 . 1 . 1 . Scrap Searched 3 | . . 1 . 2 . Spaces Dug . | . . . . . . Terrain Destroyed 34 | . . . 7 . 27 Melee . | . . . . . . Projectile . | . . . . . . AOE 34 | . . . 7 . 27 Terrain Rammed . | . . . . . . Walls Destroyed . | . . . . . . Machines Disabled . | . . . . . . Actions | -11 -10 -10 -9 -9 -9 --------- Run | Scr Mat Min Mat Min Exi Total 2936 | . 93 932 525 645 741 Wait 431 | . 3 342 7 22 57 Move 2200 | . 75 547 384 608 586 Hop . | . . . . . . Pick Up 39 | . 2 2 20 2 13 Fast Attach 20 | . 2 2 14 2 . Attach 21 | . . 1 12 . 8 Detach 3 | . . . 3 . . Swap 7 | . 1 2 1 . 3 Drop 34 | . 3 1 17 4 9 Fire 176 | . 7 35 67 7 60 Melee . | . . . . . . Ram . | . . . . . . Kick . | . . . . . . Crush 5 | . . . . . 5 Escape Stasis . | . . . . . . Rewire . | . . . . . . Trap . | . . . . . . Miscellaneous . | . . . . . . Route ------- -11/Scrapyard -10/Materials -10/Mines (discovered 2 exits: *Mat x2) -9/Materials -9/Mines (discovered 3 exits: [*Mat x2] / *Exi) -9/Exiles History --------- Turn | Location | Event 1 | -11/Scrapyard | Discovered new exit (range 0) 1 | -11/Scrapyard | Entered Materials 49 | -10/Materials | Identified exit to Mines 123 | -10/Materials | Entered Mines 162 | -10/Mines | Learned Materials machine intel 251 | -10/Mines | Core integrity fell below 50% 300 | -10/Mines | Build established: Mutant 360 | -10/Mines | Assembled infested the area 365 | -10/Mines | Assisted by a Guerilla fighting off Assembled 816 | -10/Mines | Discovered new exit (range 8) 904 | -10/Mines | Discovered new exit (range 4) 1063 | -10/Mines | Core integrity fell below 20% 1236 | -10/Mines | Entered Materials 1236 | -9/Materials | Evolved 2 slots: Propulsion x1, Utility x1 1237 | -9/Materials | Loaded intel: 52 machine locations 1386 | -9/Materials | Identified exit to Mines 1546 | -9/Materials | Destroyed 8 combat bots 1554 | -9/Materials | Core integrity fell below 50% 1568 | -9/Materials | Lost 8 parts (1p4n1u2w) 2028 | -9/Materials | Entered Mines 2033 | -9/Mines | Met a Derelict bent on vengeance 2035 | -9/Mines | Learned location of 1 exit from Lower Caves 2038 | -9/Mines | Discovered new exit (range 11) 2059 | -9/Mines | Assisted by bots powering up and referring to "LRC-V3" 2216 | -9/Mines | Build established: Scavenger-Mutant 2424 | -9/Mines | Received a Rocket Launcher from a helpful Derelict 2656 | -9/Mines | Learned 2 Materials zone layouts 2828 | -9/Mines | Found a damaged Exp. Sensor Array with a note attached 2832 | -9/Mines | Found Prototype Device 2832 | -9/Mines | Identified Exp. Sensor Array 2866 | -9/Mines | Deemed a non-threat by the Exiles lab entrance 2927 | -9/Mines | Discovered new exit (range 15) 3045 | -9/Mines | Discovered new exit (range 5) 3051 | -9/Mines | Entered Exiles 3051 | -9/Exiles | Accompanied by 2 allies 3090 | -9/Exiles | Met 8R-AWN 3117 | -9/Exiles | Met EX-HEX 3165 | -9/Exiles | Met EX-BIN 3187 | -9/Exiles | Aligned with FarCom system 3189 | -9/Exiles | Given EX-Vault access code 3234 | -9/Exiles | Opened EX-Vault 3269 | -9/Exiles | Warned to stay clear of 0b10 Research branches 3317 | -9/Exiles | Met EX-DEC 3431 | -9/Exiles | Learned location of Zion (-6) 3842 | -9/Exiles | Attacked by the Exiles 4033 | -9/Exiles | Lost 5 parts (1p2n1u1w) 4070 | -9/Exiles | Destroyed 8R-AWN 4085 | -9/Exiles | Found Prototype Processor 4093 | -9/Exiles | Found Prototype Ballistic Gun 4239 | -9/Exiles | Core integrity fell below 20% 4244 | -9/Exiles | Destroyed by DAS Turret with DAS Cannon Last Messages --------------- 04085_ Acquired Prototype Processor. 04090_ Acquired Prototype Device. 04093_ Acquired Prototype Ballistic Gun. 04107_ Acquired Exp. Sensor Array. 04111_ Extracted 4 energy. 04113_ Acquired Hcp. Battery. 04126_ Acquired Hcp. Matter Pod. 04142_ Extracted 21 matter. 04144_ Extracted 10 matter. 04156_ Identified Adv. Myomer Leg. 04180_ Acquired 2 matter. 04186_ Imp. Ion Engine destroyed. 04230_ Shield Generator destroyed. 04230_ Critical hit (Blast). 04232_ Dropped Hcp. Battery. 04233_ Extracted 81 energy. 04234_ Extracted 16 energy. 04234_ Med. Armor Plating destroyed. 04235_ Acquired 9 matter. 04236_ Imp. Assault Rifle destroyed. Map ----- +----------------------------------------------------+ | ???????????????????????????????????????????""""""? | | ???????????????????????????????????????????"""" # | | ??????????????????????????????????????????#""X" | | ??????????????????????????????????????????#" | | ??????????????????????????????????????????#" # | | ??????????????????????????????????????????#""""""? | | ??????????????????????????????????????????##"###?? | | ???????????? ????????????????????????????? ?????? | | ??????????? ???????????????????????????????????? | | ?????????# ???????????????????????????????????# | | ????????# ???#######?????????????????????????# | | ######??# #??#!!! "#?????????????????????????# | | #""### #??# "#?????????????????????????# | | ## #??# "#?????????????????????????# | | #" ## #?## ""#?????????????#???????????# | | "" #"###" ""#???????????? """????????# | | ??# ##" #????????????" """#???????# | | ???# #"" #??????????????" ????????? | | ??????# #?????????????"" ????????? | | ??????#### ##????????????"" "#???????? | | ???????# ### "#????????????? ""????????? | | ???######"#" #########?????" "?????????# | | ???# """"" ## # ###???# #????????## | | ???#! ] ###"" # % ##### ###?######" | | ???#! ] ! #?## # %##X# #"###"""""" | | ???#! #"#?#" @ % """""" " " | | ???# """" #"## ##"; % "" """ " | | ???######""## #?# #### ! " " | | ????????##### #??# #?## | | ????????????# #???# #?### | | ????????????# #????##???# | | ????????????# #?????????# | | ????????????# #?????????# | | ????????????# #?????????### "" | | ????????????# #????????????# ### | | ????????????? ?????????????# ""##?? | | ????????????? ????????????## = """##??? | | ????????????? ????????????#" """##???? | | ????????????? ????????????#"" ""#????? | | ????????????? ????????????#"" ####### | | ????????????? ????????????#"" ## | | ????????????? ????????????#"" | | ??????????????????????????##"" | | ???????????????????????????#"""" | | ???????????????????????????## | | ????????????????????????????#" " | | ????????????????????????????#"""" "" | | ????????????????????????????#"" ""## | | ????????????????????????????#" """"##? | | ????????????????????????????#""" """#?? | +----------------------------------------------------+ Best States ------------- Heat Dissipation 42 Energy Generation 12 Energy Capacity 265 Matter Stores 300 Matter Capacity 300 Sight Range 16 Terrain Scan Density 10 Armor Coverage 225 Utility Shielding 33 Evasion (%) 55 Recoil Reduction 3 Item Schematics ----------------- Huge Storage Unit | -10/Materials | Hacked Robot Schematics ------------------ None Fabricated ------------ Nothing Alien Tech Used ----------------- None Achievements -------------- None Challenges ------------ None Game ------ Seed ForceDeuteriumInterrupter Manual? 0 Play Time 00:21:32 Cumulative 373.5 hours Start 2022.06.03 @ 11:10:38 End 2022.06.03 @ 16:21:34 Sessions 3 Manual Loads 0 Difficulty Rogue Special Mode None Game No. 398 Rogue 398 Adventurer 0 Explorer 0 Win Type - Total 29 Types 18/3/2/1/2/0/3/0/0 Lore% 90 Gallery% 90 Achievement% 80 Wizard Run 0 Options --------- ASCII 0 Keyboard 0 Movement Arrows Keybinds 0 Fullscreen 2 Font 18/SmallcapsGlow Map View 76x50 Tactical HUD 1 Map Filters NONE Filters NONE Steam 1 RUN: 43ec85ea-8187-4763-b072-c41fb1c681e7